[Event "LN Tolstoy Memorial 2021"]
[Site "Yasnaya Polyana"]
[Date "2021.09.12"]
[Round "9.2"]
[White "Tomashevsky, Evgeny"]
[Black "Abdusattorov, Nodirbek"]
[Result "1/2-1/2"]
[ECO "A04"]
[WhiteElo "2708"]
[BlackElo "2648"]
[Annotator "RC"]
[PlyCount "96"]
[EventDate "2021.09.11"]
[EventType "tourn"]
[EventCountry "RUS"]
[SourceTitle "playchess.com"]
[Source "ChessBase"]
[SourceQuality "1"]
[TimeControl "900+10"]

1. Nf3 {[%emt 0:00:46]} c5 {[%emt 0:00:04]} 2. c4 {[%emt 0:00:02]} Nc6 {
[%emt 0:00:03]} 3. Nc3 {[%emt 0:00:07]} g6 {[%emt 0:00:05]} 4. e3 {[%emt 0:00:
19]} Nf6 {[%emt 0:00:07]} 5. d4 {[%emt 0:00:02]} cxd4 {[%emt 0:00:02]} 6. exd4
{[%emt 0:00:02]} d5 {[%emt 0:00:02]} 7. cxd5 {[%emt 0:00:19]} Nxd5 {[%emt 0:00:
02]} 8. Qb3 {[%emt 0:00:05]} Nxc3 {[%emt 0:00:03]} 9. Bc4 {[%emt 0:00:02]} e6 {
[%emt 0:00:12]} 10. bxc3 {[%emt 0:00:11]} Bg7 {[%emt 0:00:05]} 11. Ba3 {
[%emt 0:00:19]} Bf8 {[%emt 0:00:01]} 12. Bc1 {[%emt 0:00:03]} Bg7 {[%emt 0:00:
01]} 13. Ba3 {[%emt 0:02:16]} Bf8 {[%emt 0:00:02]} 14. O-O {[%emt 0:01:45]}
Bxa3 {[%emt 0:01:36]} 15. Qxa3 {[%emt 0:00:02]} Qe7 {[%emt 0:00:02]} 16. Qc1 {
[%emt 0:00:09]} O-O {[%emt 0:00:05]} 17. Qh6 {[%emt 0:00:29]} Qf6 {[%emt 0:00:
49]} 18. Ng5 {[%emt 0:00:25]} Qg7 {[%emt 0:00:01]} 19. Qh4 {[%emt 0:00:02]} Na5
{[%emt 0:06:00]} 20. Bd3 {[%emt 0:01:12]} b6 {[%emt 0:00:04]} 21. Ne4 {[%emt 0:
02:18]} f6 {[%emt 0:03:28]} 22. Rfe1 {[%emt 0:00:11]} Bb7 {[%emt 0:00:15]} 23.
Nd6 {[%emt 0:01:56]} Qd7 {[%emt 0:00:40]} 24. Nxb7 {[%emt 0:00:02]} Nxb7 {
[%emt 0:00:01]} 25. Re3 {[%emt 0:00:01]} Nd6 {[%emt 0:00:19]} 26. Rae1 {
[%emt 0:00:14]} Rae8 {[%emt 0:00:02]} 27. Qg4 {[%emt 0:00:35]} f5 {[%emt 0:01:
01]} 28. Qf4 {[%emt 0:00:02]} Rf7 {[%emt 0:00:29]} 29. h4 {[%emt 0:00:07]} Rfe7
{[%emt 0:00:14]} 30. h5 {[%emt 0:01:09]} Nf7 {[%emt 0:00:02]} 31. Bc4 {[%emt 0:
00:23]} Kg7 {[%emt 0:00:23]} 32. Bb3 {[%emt 0:01:33]} Qd6 {[%emt 0:00:27]} 33.
h6+ {[%emt 0:00:26]} Kf8 {[%emt 0:00:37]} 34. Qh4 {[%emt 0:00:37]} e5 {[%emt 0:
00:41]} 35. dxe5 {[%emt 0:00:01]} Rxe5 {[%emt 0:00:40]} 36. Qc4 {[%emt 0:01:57]
} Nxh6 {[%emt 0:00:05]} 37. Rxe5 {[%emt 0:00:02]} Rxe5 {[%emt 0:00:02]} 38.
Qc8+ {[%emt 0:00:01]} Kg7 {[%emt 0:00:12]} 39. Rd1 {[%emt 0:00:15]} Ng4 {
[%emt 0:00:08]} 40. g3 {[%emt 0:00:53]} Qf6 {[%emt 0:01:09]} 41. Rd7+ {[%emt 0:
00:27]} Re7 {[%emt 0:00:09]} 42. Qc7 {[%emt 0:00:02]} Rxd7 {[%emt 0:00:21]} 43.
Qxd7+ {[%emt 0:00:01]} Kh6 {[%emt 0:00:14]} 44. Qxa7 {[%emt 0:00:01]} Qd8 {
[%emt 0:00:18]} 45. Qb7 {[%emt 0:00:15]} Qd6 {[%emt 0:00:11]} 46. Qh1+ {
[%emt 0:00:07]} Kg7 {[%emt 0:00:01]} 47. Qb7+ {[%emt 0:00:03]} Kh6 {[%emt 0:00:
01]} 48. Qh1+ {[%emt 0:00:05]} Kg7 {[%emt 0:00:00]} 1/2-1/2

[Event "LN Tolstoy Memorial 2021"]
[Site "Yasnaya Polyana"]
[Date "2021.09.12"]
[Round "9.3"]
[White "Paravyan, David"]
[Black "Vitiugov, Nikita"]
[Result "1-0"]
[ECO "B41"]
[WhiteElo "2660"]
[BlackElo "2727"]
[Annotator "RC"]
[PlyCount "89"]
[EventDate "2021.09.11"]
[EventType "tourn"]
[EventCountry "RUS"]
[SourceTitle "playchess.com"]
[Source "ChessBase"]
[SourceQuality "1"]
[TimeControl "900+10"]

1. e4 {[%emt 0:00:02]} c5 {[%emt 0:00:01]} 2. Nf3 {[%emt 0:00:02]} e6 {[%emt 0:
00:02]} 3. d4 {[%emt 0:00:01]} cxd4 {[%emt 0:00:01]} 4. Nxd4 {[%emt 0:00:02]}
a6 {[%emt 0:00:01]} 5. a3 {[%emt 0:00:01]} Nf6 {[%emt 0:00:10]} 6. Nc3 {
[%emt 0:00:02]} Qc7 {[%emt 0:00:01]} 7. f4 {[%emt 0:00:03]} d6 {[%emt 0:00:01]}
8. Be3 {[%emt 0:00:28]} h5 {[%emt 0:00:33]} 9. Be2 {[%emt 0:00:05]} b5 {
[%emt 0:00:28]} 10. O-O {[%emt 0:04:26]} Bb7 {[%emt 0:00:20]} 11. Bf3 {[%emt 0:
01:55]} Nbd7 {[%emt 0:00:04]} 12. Qe2 {[%emt 0:00:31]} Be7 {[%emt 0:04:13]} 13.
Rae1 {[%emt 0:00:21]} Rc8 {[%emt 0:01:01]} 14. Kh1 {[%emt 0:00:18]} h4 {
[%emt 0:01:15]} 15. h3 {[%emt 0:00:35]} g6 {[%emt 0:01:33]} 16. Qf2 {[%emt 0:
01:20]} Nh5 {[%emt 0:01:33]} 17. Nde2 {[%emt 0:00:41]} Qc4 {[%emt 0:01:03]} 18.
Rd1 {[%emt 0:00:14]} Qc7 {[%emt 0:00:51]} 19. Rd2 {[%emt 0:00:49]} Rh7 {
[%emt 0:00:21]} 20. Rfd1 {[%emt 0:00:16]} Bc6 {[%emt 0:01:03]} 21. Kg1 {
[%emt 0:00:09]} Bb7 {[%emt 0:00:15]} 22. Rd4 {[%emt 0:00:53]} Bc6 {[%emt 0:00:
17]} 23. R4d2 {[%emt 0:01:32]} Bb7 {[%emt 0:00:05]} 24. Rd4 {[%emt 0:01:11]}
Bc6 {[%emt 0:00:01]} 25. a4 {[%emt 0:00:14]} bxa4 {[%emt 0:00:20]} 26. Nxa4 {
[%emt 0:00:21]} Qb7 {[%emt 0:01:08]} 27. Nac3 {[%emt 0:02:23]} Qxb2 {[%emt 0:
00:39]} 28. Rb1 {[%emt 0:00:01]} Qa3 {[%emt 0:00:02]} 29. Rc4 {[%emt 0:00:03]}
Qa5 {[%emt 0:00:39]} 30. Nd4 {[%emt 0:00:11]} Bb7 {[%emt 0:00:01]} 31. Rxc8+ {
[%emt 0:00:57]} Bxc8 {[%emt 0:00:01]} 32. Qd2 {[%emt 0:00:08]} Qc7 {[%emt 0:00:
13]} 33. Na4 {[%emt 0:00:13]} Ng3 {[%emt 0:00:14]} 34. c4 {[%emt 0:00:09]} e5 {
[%emt 0:01:04]} 35. Ne2 {[%emt 0:00:07]} Nxe2+ {[%emt 0:00:20]} 36. Bxe2 {
[%emt 0:00:14]} exf4 {[%emt 0:00:35]} 37. Bxf4 {[%emt 0:00:01]} Ne5 {[%emt 0:
00:03]} 38. Nc3 {[%emt 0:00:18]} Be6 {[%emt 0:00:40]} 39. Nd5 {[%emt 0:00:01]}
Bxd5 {[%emt 0:00:12]} 40. Qxd5 {[%emt 0:00:02]} Bf6 {[%emt 0:00:03]} 41. Be3 {
[%emt 0:00:18]} Rh8 {[%emt 0:00:15]} 42. c5 {[%emt 0:00:06]} Qc6 {[%emt 0:00:
07]} 43. Rb8+ {[%emt 0:00:12]} Ke7 {[%emt 0:00:20]} 44. cxd6+ {[%emt 0:00:04]}
Kd7 {[%emt 0:00:10]} 45. Bg4+ {[%emt 0:00:02]} 1-0